Workbook

Sheet teh (hidden)
A1: 1.728 | B1: 2.016 | C1: 2.304 | D1: 2.592 | E1: 2.880 | G1: =IF(A2,A1,0) -> 1.728 | H1: =IF(B2,B1,0) -> 0 | I1: 0 | J1: 0 | K1: 0 | L1: =G1+H1+I1+J1+K1 -> 1.728
A2: TRUE | B2: FALSE | C2: FALSE | D2: FALSE | E2: FALSE | G2: =IF(A2,Вагонка!H7,0) -> 1728 | H2: =IF(B2,Вагонка!I7,0) -> 0 | I2: =IF(C2,Вагонка!J7,0) -> 0 | J2: =IF(D2,Вагонка!K7,0) -> 0 | K2: =IF(E2,Вагонка!L7,0) -> 0 | L2: =SUM(G2:K2) -> 1728
A3: 1.728 | B3: 2.016 | C3: 2.304 | D3: 2.592 | E3: 2.880 | G3: =IF(A4,A3,0) -> 1.728 | H3: =IF(B4,B3,0) -> 0 | I3: 0 | J3: 0 | K3: 0 | L3: =G3+H3+I3+J3+K3 -> 1.728
A4: TRUE | B4: FALSE | C4: FALSE | D4: FALSE | E4: FALSE | G4: =IF(A4,Вагонка!H8,0) -> 864 | H4: =IF(B4,Вагонка!I8,0) -> 0 | I4: =IF(C4,Вагонка!J8,0) -> 0 | J4: =IF(D4,Вагонка!K8,0) -> 0 | K4: =IF(E4,Вагонка!L8,0) -> 0 | L4: =SUM(G4:K4) -> 864
A5: 1.728 | B5: 2.016 | C5: 2.304 | D5: 2.592 | E5: 2.880 | G5: =IF(A6,A5,0) -> 1.728 | H5: =IF(B6,B5,0) -> 0 | I5: 0 | J5: 0 | K5: 0 | L5: =G5+H5+I5+J5+K5 -> 1.728
A6: TRUE | B6: FALSE | C6: FALSE | D6: FALSE | E6: FALSE | G6: =IF(A6,Вагонка!H9,0) -> 777.6 | H6: =IF(B6,Вагонка!I9,0) -> 0 | I6: =IF(C6,Вагонка!J9,0) -> 0 | J6: =IF(D6,Вагонка!K9,0) -> 0 | K6: =IF(E6,Вагонка!L9,0) -> 0 | L6: =SUM(G6:K6) -> 777.6
A7: 1.728 | B7: 2.016 | C7: 2.304 | D7: 2.592 | E7: 2.880 | G7: =IF(A8,A7,0) -> 1.728 | H7: =IF(B8,B7,0) -> 0 | I7: 0 | J7: 0 | K7: 0 | L7: =G7+H7+I7+J7+K7 -> 1.728
A8: TRUE | B8: FALSE | C8: FALSE | D8: FALSE | E8: FALSE | G8: =IF(A8,Вагонка!H10,0) -> 432 | H8: =IF(B8,Вагонка!I10,0) -> 0 | I8: =IF(C8,Вагонка!J10,0) -> 0 | J8: =IF(D8,Вагонка!K10,0) -> 0 | K8: =IF(E8,Вагонка!L10,0) -> 0 | L8: =SUM(G8:K8) -> 432
A9: 1.728 | B9: 2.016 | C9: 2.304 | D9: 2.592 | E9: 2.880 | G9: =IF(A10,A9,0) -> 1.728 | H9: =IF(B10,B9,0) -> 0 | I9: 0 | J9: 0 | K9: 0 | L9: =G9+H9+I9+J9+K9 -> 1.728
A10: TRUE | B10: FALSE | C10: FALSE | D10: FALSE | E10: FALSE | G10: =IF(A10,Вагонка!H11,0) -> 1296 | H10: =IF(B10,Вагонка!I11,0) -> 0 | I10: =IF(C10,Вагонка!J11,0) -> 0 | J10: =IF(D10,Вагонка!K11,0) -> 0 | K10: =IF(E10,Вагонка!L11,0) -> 0 | L10: =SUM(G10:K10) -> 1296
A11: 1.728 | B11: 2.016 | C11: 2.304 | D11: 2.592 | E11: 2.880 | G11: =IF(A12,A11,0) -> 1.728 | H11: =IF(B12,B11,0) -> 0 | I11: 0 | J11: 0 | K11: 0 | L11: =G11+H11+I11+J11+K11 -> 1.728
A12: TRUE | B12: FALSE | C12: FALSE | D12: FALSE | E12: FALSE | G12: =IF(A12,Вагонка!H12,0) -> 1036.8 | H12: =IF(B12,Вагонка!I12,0) -> 0 | I12: =IF(C12,Вагонка!J12,0) -> 0 | J12: =IF(D12,Вагонка!K12,0) -> 0 | K12: =IF(E12,Вагонка!L12,0) -> 0 | L12: =SUM(G12:K12) -> 1036.8
A13: 1.728 | B13: 2.016 | C13: 2.304 | D13: 2.592 | E13: 2.880 | G13: =IF(A14,A13,0) -> 1.728 | H13: =IF(B14,B13,0) -> 0 | I13: 0 | J13: 0 | K13: 0 | L13: =G13+H13+I13+J13+K13 -> 1.728
A14: TRUE | B14: FALSE | C14: FALSE | D14: FALSE | E14: FALSE | G14: =IF(A14,Вагонка!H13,0) -> 777.6 | H14: =IF(B14,Вагонка!I13,0) -> 0 | I14: =IF(C14,Вагонка!J13,0) -> 0 | J14: =IF(D14,Вагонка!K13,0) -> 0 | K14: =IF(E14,Вагонка!L13,0) -> 0 | L14: =SUM(G14:K14) -> 777.6
A15: 1.728 | B15: 2.016 | C15: 2.304 | D15: 2.592 | E15: 2.880 | G15: =IF(A16,A15,0) -> 1.728 | H15: =IF(B16,B15,0) -> 0 | I15: 0 | J15: 0 | K15: 0 | L15: =G15+H15+I15+J15+K15 -> 1.728
A16: TRUE | B16: FALSE | C16: FALSE | D16: FALSE | E16: FALSE | G16: =IF(A16,Вагонка!H14,0) -> 1728 | H16: =IF(B16,Вагонка!I14,0) -> 0 | I16: =IF(C16,Вагонка!J14,0) -> 0 | J16: =IF(D16,Вагонка!K14,0) -> 0 | K16: =IF(E16,Вагонка!L14,0) -> 0 | L16: =SUM(G16:K16) -> 1728
A17: 1.728 | B17: 2.016 | C17: 2.304 | D17: 2.592 | E17: 2.880 | G17: =IF(A18,A17,0) -> 1.728 | H17: =IF(B18,B17,0) -> 0 | I17: 0 | J17: 0 | K17: 0 | L17: =G17+H17+I17+J17+K17 -> 1.728
A18: TRUE | B18: FALSE | C18: FALSE | D18: FALSE | E18: FALSE | G18: =IF(A18,Вагонка!H15,0) -> 1382.4 | H18: =IF(B18,Вагонка!I15,0) -> 0 | I18: =IF(C18,Вагонка!J15,0) -> 0 | J18: =IF(D18,Вагонка!K15,0) -> 0 | K18: =IF(E18,Вагонка!L15,0) -> 0 | L18: =SUM(G18:K18) -> 1382.4
A19: 1.728 | B19: 2.016 | C19: 2.304 | D19: 2.592 | E19: 2.880 | G19: =IF(A20,A19,0) -> 1.728 | H19: =IF(B20,B19,0) -> 0 | I19: 0 | J19: 0 | K19: 0 | L19: =G19+H19+I19+J19+K19 -> 1.728
A20: TRUE | B20: FALSE | C20: FALSE | D20: FALSE | E20: FALSE | G20: =IF(A20,Вагонка!H16,0) -> 604.8 | H20: =IF(B20,Вагонка!I16,0) -> 0 | I20: =IF(C20,Вагонка!J16,0) -> 0 | J20: =IF(D20,Вагонка!K16,0) -> 0 | K20: =IF(E20,Вагонка!L16,0) -> 0 | L20: =SUM(G20:K20) -> 604.8

Sheet Содержание
B1: ВАЖНО!!! Для работы прайса необходимо ВКЛЮЧИТЬ СОДЕРЖИМОЕ СТРАНИЦЫ
B3: Далее Вы выбираете интересующий Вас раздел(лист) и вводите необходимое кол-во нужного Вам товара
B4: После этого переходите на "главную страницу(Содержание)" и оформляете заказ. После нажатия кнопки
B5: "ОФОРМИТЬ ЗАКАЗ" удаляются пустые строки и вкладки(листы). Далее Вы сохраняете этот файл и отправляете его нам
B6: на почту | C6: info@rus-les.net
A15: 1 | B15: Содержание
A16: 2 | B16: Доска, брус
A17: 3 | B17: Доска сухая строганная
A18: 4 | B18: Имитация бруса/сруба, доска пола шпунтованная
A19: 5 | B19: Вагонка
A20: 6 | B20: Погонаж
A21: 7 | B21: ОSB-3 (Ориентировано-стружечные плиты) | J21: Сумма заказа | K21: ='Доска Брус'!K39+'Доска строг'!F25+'Раублок-хаус, Шпунт'!L17+Вагонка!O17+Погонаж!J20+OSB!H12+Фанера!G24+'ЦСП ГСП'!F21+ГКЛ!G10+'ДВП ДСП'!F9+'Утеп-ли'!I31+Пароизол!H22+Крепеж!K22+#REF!+Огнебио!G38+'Грунт для OSB '!G9+#REF!+Напл.мат!J9+Цемент!K8+#REF!+#REF! -> 
A22: 8 | B22: Фанера
A23: 9 | B23: ЦСП, ГСП (Цементно/гипсостружечные плиты)
A24: 10 | B24: ГКЛ, ПГП (Гипсокартон, пазогребневые плиты)
A25: 11 | B25: ДВП, ДСП
A26: 12 | B26: Утеплители, пенопласт, фольга
A27: 13 | B27: Пароизоляционные материалы
A28: 14 | B28: Крепеж
A29: 15 | B29: Лаки, краски для дерева
A30: 16 | B30: Огнебиозащита, антисептики
A31: 17 | B31: Грунт для OSB-3. НОВИНКА!!!
A32: 18 | B32: Грунты глубокого проникновения
A33: 19 | B33: Наплавляемые кровельные материалы
A34: 20 | B34: Цемент
A35: 21 | B35: Черенки
A36: 22 | B36: Перчатки, мешки для мусора

Sheet Доска Брус
K1: на главную страницу
A2: ПИЛОМАТЕРИАЛ ЕСТЕСТВЕННОЙ ВЛАЖНОСТИ
A4: № | B4: Наименование | C4: Кол-во досок в м3 | D4: Объем одной доски м3 | E4: Цена за м3, руб | F4: Цена за шт, руб | G4: Кол-во заказа в шт | H4: Сумма, руб/шт | I4: Кол-во заказа в м3 | J4: Цена за м3, руб | K4: Сумма, руб/м3
G5: Напишите кол-во заказа в шт | I5: Напишите кол-во заказа в м3
A6: Доска обрезная 1 сорт | G6: - | I6: -
A7: 1 | B7: Доска обрезная 25*100*3000 1 сорт | C7: 133.3 | D7: 0.0075 | E7: от 13000 | F7: =E7/C7 ->  | H7: =F7*G7 ->  | J7: 8,200р. | K7: =I7*J7 -> 0.00р.
A8: 2 | B8: Доска обрезная 25*100*6000 1 сорт | C8: 66.6 | D8: 0.015 | E8: от 18500 | F8: =E8/C8 ->  | H8: =F8*G8 ->  | J8: 8,200р. | K8: =E8*I8 -> 
A9: 3 | B9: Доска обрезная 25*130*6000 1 сорт | C9: 51.3 | D9: 0.019 | E9: от 18500 | J9: 8,200р.
A10: 4 | B10: Доска обрезная 25*150*6000 1 сорт | C10: 44.4 | D10: 0.022 | E10: от 18500 | J10: 8,200р.
A11: 5 | B11: Доска обрезная 25*200*6000 1 сорт | C11: 33.3 | D11: 0.03 | E11: от 18500 | J11: 8,200р.
A12: 6 | B12: Доска обрезная 40*100*6000 1сорт | C12: 41.6 | D12: 0.024 | E12: от 18500 | J12: 8,200р.
A13: 7 | B13: Доска обрезная 40*150*6000 1 сорт | C13: 27.7 | D13: 0.036 | E13: от 18500 | J13: 8,200р.
A14: 8 | B14: Доска обрезная 40*200*6000 1 сорт | C14: 20.8 | D14: 0.048 | E14: от 18500 | J14: 8,200р.
A15: 9 | B15: Доска 50*100*6000 1 сорт | C15: 33.3 | D15: 0.03 | E15: от 18500 | J15: 8,200р.
A16: 10 | B16: Доска 50*150*6000 1 сорт | C16: 22.2 | D16: 0.045 | E16: от 18500 | J16: 8,200р.
A17: 11 | B17: Доска 50*200*6000 1 сорт | C17: 16.6 | D17: 0.06 | E17: от 18500 | J17: 8,200р.
A18: 12 | B18: Доска 50*250*6000 1 сорт | C18: 13.3 | D18: 0.075 | E18: от 19500 | J18: 8,500р.
A19: Доска обрезная 2 сорт | G19: - | I19: -
A20: 13 | B20: Доска обрезная 25*100*3000 2 сорт | C20: 133 | D20: 0.0075 | E20: от 9500 | F20: =D20*E20 ->  | H20: =F20*G20 ->  | J20: 5,700 | K20: =I20*J20 -> 0.00р.
A21: 14 | B21: Доска обрезная 25*100*6000 2 сорт | C21: 66.6 | D21: 0.015 | E21: от 11500 | F21: =D21*E21 ->  | H21: =F21*G21 ->  | J21: 5,700 | K21: =I21*J21 -> 0.00р.
A22: 15 | B22: Доска обрезная 25*130*6000 2 сорт | C22: 51.3 | D22: 0.019 | E22: от 11500 | F22: =D22*E22 ->  | J22: 5,700 | K22: 0.00р.
A23: 16 | B23: Доска обрезная 25*150*6000 2 сорт | C23: 44.4 | D23: 0.022 | E23: от 11500 | J23: 5,700 | K23: 0.00р.
A24: 17 | B24: Доска обрезная 25*200*6000 2 сорт | C24: 33.3 | D24: 0.03 | E24: от 11500 | J24: 5,700 | K24: 0.00р.
A25: 18 | B25: Доска обрезная 40*100*6000 2 сорт | C25: 41.6 | D25: 0.024 | E25: от 14500 | J25: 6,700 | K25: 0.00р.
A26: 19 | B26: Доска обрезная 40*150*6000 2 сорт | C26: 27.7 | D26: 0.036 | E26: от 14500 | J26: 6,700 | K26: =I26*J26 -> 0.00р.
A27: 20 | B27: Доска обрезная 40*200*6000 2 сорт | C27: 20.8 | D27: 0.048 | E27: от 14500 | J27: 6,700 | K27: 0.00р.
A28: 21 | B28: Доска обрезная 50*100*6000 2 сорт | C28: 33.3 | D28: 0.03 | E28: от 14500 | J28: 6,700 | K28: 0.00р.
A29: 22 | B29: Доска обрезная 50*150*6000 2 сорт | C29: 22.2 | D29: 0.045 | E29: от 14500 | J29: 6,700 | K29: 0.00р.
A30: 23 | B30: Доска обрезная 50*200*6000 2 сорт | C30: 16.6 | D30: 0.06 | E30: от 14500 | J30: 6,700 | K30: 0.00р.
A31: Брус | G31: - | I31: -
A32: 24 | B32: Брус 100*100*6000 | C32: 16.6 | D32: 0.06 | E32: от 18500 | F32: =D32*E32 ->  | H32: =F32*G32 ->  | J32: 8,200р. | K32: =I32*J32 -> 0.00р.
A33: 25 | B33: Брус 100*150*6000 | C33: 11.1 | D33: 0.09 | E33: от 18500 | F33: =D33*E33 ->  | H33: =F33*G33 ->  | J33: 8,200р. | K33: =I33*J33 -> 0.00р.
A34: 26 | B34: Брус 150*150*6000 | C34: 7.4 | D34: 0.135 | E34: от 18500 | J34: 8,200р. | K34: 0.00р.
A35: 27 | B35: Брус 100*200*6000 | C35: 8.3 | D35: 0.12 | E35: от 18500 | J35: 8,500р. | K35: 0.00р.
A36: 28 | B36: Брус 150*200*6000 | C36: 5.5 | D36: 0.18 | E36: от 19000 | J36: 8,500р. | K36: 0.00р.
A37: 29 | B37: Брус 200*200*6000 | C37: 4.1 | D37: 0.24 | E37: от 19000 | J37: 8,500р. | K37: 0.00р.
G38: Общая сумма | H38: =SUM(H7:H37) ->  | I38: Общая сумма | K38: =SUM(K7:K37) -> 
G39: - | I39: ИТОГО СУММА | K39: =H38+K38 -> 

Sheet Доска строг
A1: ДОСКА СУХАЯ СТРОГАННАЯ | F1: на главную страницу
A2: № | B2: Наименование | C2: Кол-во досок в м3 | D2: Цена, руб/шт | E2: Кол-во заказа, шт | F2: Сумма, руб | G2: Объем заказа, м3 | H2: Цена за м3, руб | I2: Сумма, руб/м3
E3: Напишите кол-во заказа в шт | G3: Напишите кол-во заказа в м3
A4: 1 | B4: Доска сухая строганная 20*90*3000 | C4: =1/0.02/0.1/3 -> 167 | D4: 210р. | F4: =D4*E4 -> 0.00р.
A5: 2 | B5: Доска сухая строганная 20*90*6000 | C5: =1/0.02/0.1/6 -> 83 | D5: 420р. | F5: 0.00р.
A6: 3 | B6: Доска сухая строганная 20*120*6000 | C6: =1/0.018/0.12/6 -> 77 | D6: 450р. | F6: =D6*E6 -> 0.00р.
A7: 4 | B7: Доска сухая строганная 20*140*6000 | C7: =1/0.02/0.14/6 -> 60 | D7: 590р. | F7: 0.00р.
A8: 5 | B8: Доска сухая строганная 25*125*6000 | C8: =1/0.025/0.125/6 -> 53 | D8: 430р. | F8: 0.00р.
A9: 6 | B9: Доска сухая строганная 35*140*6000 | C9: =1/0.035/0.14/6 -> 34 | D9: 1,030р. | F9: 0.00р.
A10: 7 | B10: Доска сухая строганная 35*190*6000 | C10: =1/0.035/0.19/6 -> 25 | D10: 1,400р. | F10: 0.00р.
A11: 8 | B11: Доска сухая строганная 43*90*6000 | C11: =1/0.043/0.09/6 -> 43 | D11: 810р. | F11: 0.00р.
A12: 9 | B12: Доска сухая строганная 43*140*6000 | C12: =1/0.043/0.14/6 -> 28 | D12: 1,250р. | F12: 0.00р.
A13: 10 | B13: Доска сухая строганная 43*190*6000 | C13: =1/0.043/0.19/6 -> 20 | D13: 1,750р. | F13: 0.00р.
A14: 11 | B14: Доска сухая 25*100*6000 | C14: 67 | D14: 520р. | F14: 0.00р.
A15: 12 | B15: Доска сухая 25*150*6000 | C15: 44 | D15: 790р. | F15: 0.00р.
A16: 13 | B16: Доска сухая 40*150*6000 | C16: 28 | D16: 1,250р. | F16: =D16*E16 -> 0.00р. | H16: =#REF! ->  | I16: =G16*H16 -> 
A17: 14 | B17: Доска сухая 50*150*6000 | C17: 22 | D17: 1,590р. | F17: 0.00р.
A18: 15 | B18: Доска сухая 50*200*6000 | C18: 17 | D18: 2,100р. | F18: 0.00р.
A19: Брусок сухой строганный | E19: -
A20: 16 | B20: Брусок 20*40*3000 | C20: =1/0.02/0.04/3 -> 417 | D20: 90р. | F20: =D20*E20 -> 0.00р.
A21: 17 | B21: Брусок 40*40*3000 | C21: =1/0.04/0.04/3 -> 208 | D21: 170р. | F21: =D21*E21 -> 0.00р.
A22: 18 | B22: Брусок 40*50*3000 | C22: =1/0.04/0.05/3 -> 167 | D22: 220р. | F22: 0.00р.
A23: 19 | B23: Брусок 50*50*3000 | C23: =1/0.05/0.05/3 -> 133 | D23: 270р. | F23: 0.00р.
A24: 20 | B24: Брусок 50*70*3000 | C24: =1/0.05/0.07/3 -> 95 | D24: 390р. | F24: 0.00р.
E25: Общая сумма | F25: =SUM(F4:F24) -> 0.00р.

Sheet Раублок-хаус, Шпунт
A2: ИМИТАЦИЯ БРУСА/СРУБА | K2: на главную страницу
A3: ДОСКА ПОЛА ШПУНТОВАННАЯ
A4: № | B4: Наименование | E4: Цена за м2, руб | F4: Кол-во заказа, м2 | G4: Сумма, руб | H4: Упаковка | J4: Цена за упаковку, руб | K4: Кол-во заказа, упак. | L4: Сумма, руб
F5: написать кол-во м2 | H5: шт | I5: м2 | K5: написать кол-во упак.
A6: Имитация бруса (рау-хаус) сорт АВ | F6: - | K6: -
A7: 1 | B7: Рау-хаус 16*135*6000 | E7: 650 | G7: =E7*F7 -> 0.00р. | H7: 7 | I7: =H7*0.135*6 -> 5.67 | J7: =E7*I7 -> 3,686р. | L7: =J7*K7 -> 0.00р.
A8: 2 | B8: Рау-хаус 21*185*6000 | E8: 850 | G8: 0.00р. | H8: 5 | I8: =H8*0.185*6 -> 5.55 | J8: 4,718р. | L8: 0.00р.
A9: Имитация сруба (блок-хаус) сорт АВ | F9: - | K9: -
A10: 3 | B10: Блок-хаус 36*185*6000 | C10: 36*185*6000 | D10: АВ | E10: 1450 | G10: 0.00р. | H10: 2 | I10: =H10*0.185*6 -> 2.22 | J10: 3,219р. | L10: =J10*K10 -> 0.00р.
A11: Доска пола шпунтованная, сорт АВ | F11: - | K11: -
A12: 4 | B12: Доска пола 27*130*6000 | C12: 27*130*6000 | D12: АВ | E12: 1000 | G12: 0.00р. | H12: 1 | I12: =H12*0.13*6 -> 0.78 | J12: 780р. | L12: =J12*K12 -> 0.00р.
A13: 5 | B13: Доска пола 36*130*6000 | C13: 36*130*6000 | D13: АВ | E13: 1250 | G13: =E13*F13 -> 0.00р. | H13: 1 | I13: =H13*0.13*6 -> 0.78 | J13: =E13*I13 -> 975р. | L13: =J13*K13 -> 0.00р.
A14: 6 | B14: Доска пола 44*130*6000 | C14: 44*130*6000 | D14: АВ | E14: 1500 | G14: 0.00р. | H14: 1 | I14: =H14*0.13*6 -> 0.78 | J14: 1,170р. | L14: 0.00р.
F15: Общая сумма | G15: =SUM(G7:G14) -> 0.00р. | K15: Общая сумма | L15: =SUM(L7:L14) -> 0.00р.
F17: - | K17: ИТОГО СУММА | L17: =G15+L15 -> 0.00 р.

Sheet Вагонка
N1: на главную страницу
A2: ЕВРОВАГОНКА ДОЗ "Архангельский"
A3: № | B3: Наименование | E3: Цена, руб/м2 | F3: Кол-во заказа, м2 | G3: Сумма, руб | H3: Цена за упаковку, руб | M3: Расчет кол-ва упак. | N3: Итоговое кол-во упак. | O3: Итоговая сумма с учетом кратности упаковок, руб
F4: ниже впишите кол-во м2 | G4: Длина | H4: 1,80 м | I4: 2,10 м | J4: 2,40 м | K4: 2,70 м | L4: 3,00 м
G5: Кол-во м2 в упак. (10 шт) | H5: 1.728 | I5: 2.016 | J5: 2.304 | K5: 2.592 | L5: 2.880
F6: - | H6: ВЫБЕРИТЕ НУЖНУЮ ДЛИНУ | M6: - | N6: -
A7: 1 | B7: Евровагонка (ель, сосна) 13мм*96мм без сучков, цельная Сорт Экстра | E7: 1000 | G7: =E7*F7 -> 0.00р. | H7: =1.728*E7 -> 1,728.00 | I7: =2.016*E7 -> 2,016.00 | J7: =2.304*E7 -> 2,304.00 | K7: =2.592*E7 -> 2,592.00 | L7: =2.88*E7 -> 2,880.00 | M7: =F7/teh!L1 -> 0.00000 | N7: =ROUNDUP(M7,0) -> 0 | O7: =N7*teh!L2 -> 0.00р.
A8: 2 | B8: Евровагонка (ель, сосна) 13мм*96мм сорт А | E8: 500 | G8: =E8*F8 -> 0.00р. | H8: =1.728*E8 -> 864.00 | I8: =2.016*E8 -> 1,008.00 | J8: =2.304*E8 -> 1,152.00 | K8: =2.592*E8 -> 1,296.00 | L8: =2.88*E8 -> 1,440.00 | M8: =F8/teh!L3 -> 0.00000 | N8: =ROUNDUP(M8,0) -> 0 | O8: =N8*teh!L4 -> 0.00р.
A9: 3 | B9: Евровагонка (ель, сосна) 13мм*96мм сорт В | E9: 450 | G9: 0.00р. | H9: 777.60 | I9: 907.20 | J9: 1,036.80 | K9: 1,166.40 | L9: 1,296.00 | M9: =F9/teh!L5 -> 0.00000 | N9: 0 | O9: =N9*teh!L6 -> 0.00р.
A10: 4 | B10: Евровагонка (ель, сосна) 13мм*96мм сорт С | E10: 250 | G10: 0.00р. | H10: 432.00 | I10: 504.00 | J10: 576.00 | K10: 648.00 | L10: 720.00 | M10: =F10/teh!L7 -> 0.00000 | N10: 0 | O10: =N10*teh!L8 -> 0.00р.
A11: 5 | B11: Евровагонка (лиственница) 13мм*96мм сорт АВ | E11: 750 | G11: 0.00р. | H11: 1,296.00 | I11: 1,512.00 | J11: 1,728.00 | K11: 1,944.00 | L11: 2,160.00 | M11: =F11/teh!L9 -> 0.00000 | N11: 0 | O11: =N11*teh!L10 -> 0.00р.
A12: 6 | B12: Евровагонка (осина) 13мм*96мм сорт Экстра/А | E12: 600 | G12: 0.00р. | H12: 1,036.80 | I12: 1,209.60 | J12: 1,382.40 | K12: 1,555.20 | L12: 1,728.00 | M12: =F12/teh!L11 -> 0.00000 | N12: 0 | O12: =N12*teh!L12 -> 0.00р.
A13: 7 | B13: Евровагонка (осина) 13мм*96мм Сорт В | E13: 450 | G13: 0.00р. | H13: 777.60 | I13: 907.20 | J13: 1,036.80 | K13: 1,166.40 | L13: 1,296.00 | M13: =F13/teh!L13 -> 0.00000 | N13: 0 | O13: =N13*teh!L14 -> 0.00р.
A14: 8 | B14: Евровагонка (липа) 13мм*96мм Сорт Экстра/А | E14: 1000 | G14: 0.00р. | H14: 1,728.00 | I14: 2,016.00 | J14: 2,304.00 | K14: 2,592.00 | L14: 2,880.00 | M14: =F14/teh!L15 -> 0.00000 | N14: 0 | O14: =N14*teh!L16 -> 0.00р.
A15: 9 | B15: Евровагонка (липа) 13мм*96мм Сорт В | E15: 800 | G15: 0.00р. | H15: 1,382.40 | I15: 1,612.80 | J15: 1,843.20 | K15: 2,073.60 | L15: 2,304.00 | M15: =F15/teh!L17 -> 0.00000 | N15: 0 | O15: =N15*teh!L18 -> 0.00р.
A16: 10 | B16: Евровагонка (липа) 13мм*96мм Сорт С | E16: 350 | G16: 0.00р. | H16: 604.80 | I16: 705.60 | J16: 806.40 | K16: 907.20 | L16: 1,008.00 | M16: =F16/teh!L19 -> 0.00000 | N16: 0 | O16: =N16*teh!L20 -> 0.00р.
F17: - | N17: Общая сумма | O17: =SUM(O6:O16) -> 0.00р.

Sheet Погонаж
A2: РЕЙКА, ПЛИНТУС, УГОЛОК, ОБКЛАДКА | J2: на главную страницу
A4: № | B4: Наименование | C4: Размеры, мм | D4: Ед. изм. | E4: Кол-во заказа, пог.м | F4: Цена, руб/пог.м | G4: Сумма, руб | H4: Кол-во заказа, в шт | I4: Цена, руб/шт | J4: Сумма, руб
E5: впишите кол-во заказа в пог м | H5: впишите кол-во заказа в шт
A6: 1 | B6: Рейка сращенная бессучковая (нащельник) экстра | C6: 6*32*2100 | D6: шт | F6: 65р. | G6: =E6*F6 -> 0.00р. | I6: 50р. | J6: =I6*H6 -> 0.00р.
A7: 2 | B7: Плинтус сращенный бессучковый экстра | C7: 27*2500 | D7: шт | F7: 75р. | G7: =E7*F7 -> 0.00р. | I7: 50р. | J7: =I7*H7 -> 0.00р.
A8: 3 | B8: Плинтус сращенный бессучковый экстра | C8: 45*2500 | D8: шт | F8: 100р. | G8: 0.00р. | I8: 60р. | J8: 0.00р.
A9: 4 | B9: Плинтус сращенный бессучковый экстра | C9: 55*2500 | D9: шт | F9: 120р. | G9: 0.00р. | I9: 70р. | J9: 0.00р.
A10: 5 | B10: Плинтус сращенный бессучковый (сапожок) экстра | C10: 65*2500 | D10: шт | F10: 120р. | G10: 0.00р. | I10: 60р. | J10: 0.00р.
A11: 6 | B11: Плинтус сращенный бессучковый 2сорт | C11: 45*2500 | D11: шт | F11: 50р. | G11: 0.00р. | I11: 40р. | J11: 0.00р.
A12: 7 | B12: Плинтус сращенный бессучковый 2сорт | C12: 55*2500 | D12: шт | F12: 50р. | G12: 0.00р. | I12: 40р. | J12: 0.00р.
A13: 8 | B13: Плинтус сращенный бессучковый (сапожок) 2 сорт | C13: 65*2500 | D13: шт | F13: 50р. | G13: 0.00р. | I13: 40р. | J13: 0.00р.
A14: 9 | B14: Уголок сращенный бессучковый | C14: 30*30*2500 | D14: шт | F14: 150р. | G14: 0.00р. | I14: 100р. | J14: 0.00р.
A15: 10 | B15: Уголок сращенный бессучковый | C15: 40*40*2500 | D15: шт | F15: 200р. | G15: 0.00р. | I15: 130р. | J15: 0.00р.
A16: 11 | B16: Обкладка сращенная бессучковая | C16: 10*65*2200 | D16: шт | F16: 150р. | G16: 0.00р. | I16: 70р. | J16: 0.00р.
A17: 12 | B17: Обкладка сращенная бессучковая | C17: 10*90*2200 | D17: шт | F17: 200р. | G17: 0.00р. | I17: 110р. | J17: 0.00р.
E18: Общая сумма | G18: =SUM(G5:G17) -> 0.00р. | H18: Общая сумма | J18: =SUM(J5:J17) -> 0.00р.
E20: - | H20: ИТОГО СУММА | I20: =G18+J18 -> 0.00р.

Sheet OSB
A2: OSB-3 (ОСП - ОРИЕНТИРОВАНО-СТРУЖЕЧНЫЕ ПЛИТЫ) | F2: на главную страницу
A4: № | B4: Наименование | C4: Размер листа, мм | D4: Кол-во листов в пачке | E4: Площадь листа, м2 | F4: Цена за лист, руб | G4: Кол-во заказа | H4: Сумма, руб
G5: -
A6: 1 | B6: Плита ОSB-3 9мм Кроношпан Егорьевск | C6: 2440 х 1220 х 9 | D6: 72 | E6: 2.988 | F6: 1,600р. | H6: =F6*G6 -> 0.00р.
A7: 2 | B7: Плита ОSB-3 9мм Кronospan Белоруссия | C7: 2500 х 1250 х 9 | D7: 78 | E7: 3.125 | F7: 1,750р. | H7: 0.00р.
A8: 3 | B8: Плита ОSB-3 12мм Kronospan Белоруссия | C8: 2500 х 1250 х 12 | D8: 60 | E8: 3.125 | F8: 2,250р. | H8: 0.00р.
A9: 5 | B9: Плита ОSB-3 15мм Kronospan Белоруссия | C9: 2500 х 1250 х 15 | D9: 48 | E9: 3.125 | F9: 2,800р. | H9: 0.00р.
A10: 6 | B10: Плита ОSB-3 18мм Kronospan Белоруссия | C10: 2500 х 1250 х 18 | D10: 39 | E10: 3.125 | F10: 3,350р. | H10: 0.00р.
A11: 7 | B11: Плита ОSB-3 22мм Kronospan Белоруссия | C11: 2500 х 1250 х 22 | D11: 32 | E11: 3.125 | F11: 4,100р. | H11: 0.00р.
G12: Общая сумма | H12: =SUM(H5:H11) -> 0.00р.

Sheet Фанера
G1: на главную страницу
A2: Фанера ФК, ФСФ, Ламинированная
A4: № | B4: Наименование | C4: Ед. изм. | D4: Цена за лист, руб | F4: Кол-во заказа | G4: Сумма, руб
A5: ФАНЕРА березовая марки ФК Сорт 3/4,4/4 ГОСТ 3916.1-96 | F5: -
A6: 1 | B6: Фанера 4мм*1,525*1,525 | C6: лист | D6: 570р. | G6: =D6*F6 -> 0.00р.
A7: 2 | B7: Фанера 6мм*1,525*1,525 | C7: лист | D7: 750р. | G7: 0.00р.
A8: 3 | B8: Фанера 8мм*1,525*1,525 | C8: лист | D8: 1,050р. | G8: 0.00р.
A9: 4 | B9: Фанера 9мм*1,525*1,525 | C9: лист | D9: 1,150р. | G9: 0.00р.
A10: 5 | B10: Фанера 10мм*1,525*1,525 | C10: лист | D10: 1,250р. | G10: 0.00р.
A11: 6 | B11: Фанера 12мм*1,525*1,525 | C11: лист | D11: 1,400р. | G11: 0.00р.
A12: 7 | B12: Фанера 15мм*1,525*1,525 | C12: лист | D12: 1,800р. | G12: 0.00р.
A13: 8 | B13: Фанера 18мм*1,525*1,525 | C13: лист | D13: 2,100р. | G13: 0.00р.
A14: 9 | B14: Фанера 21мм*1,525*1,525 | C14: лист | D14: 2,600р. | G14: 0.00р.
A15: ФАНЕРА березовая марки ФСФ сорт 4/4 ГОСТ 3916.1-96 | F15: -
A16: 10 | B16: Фанера 6мм*2,440*1,220 | C16: лист | D16: 1,550р. | G16: =D16*F16 -> 0.00р.
A17: 11 | B17: Фанера 9мм*2,440*1,220 | C17: лист | D17: 2,150р. | G17: 0.00р.
A18: 12 | B18: Фанера 12мм*2,440*1,220 | C18: лист | D18: 2,700р. | G18: 0.00р.
A19: 13 | B19: Фанера 15мм*2,440*1,220 | C19: лист | D19: 3,100р. | G19: 0.00р.
A20: 14 | B20: Фанера 18мм*2,440*1,220 | C20: лист | D20: 3,700р. | G20: 0.00р.
A21: 15 | B21: Фанера 21мм*2,440*1,220 | C21: лист | D21: 4,450р. | G21: 0.00р.
A22: ФАНЕРА ламинированная | F22: -
A23: 16 | B23: Фанера лам. 2400*1220*18 мм Береза сорт 1/1 | C23: лист | D23: 4,500р. | G23: =D23*F23 -> 0.00р.
F24: Общая сумма | G24: =SUM(G6:G23) -> 0.00р.

Sheet ЦСП ГСП
E1: на главную страницу
A2: ЦСП (Цементно/Гипсо-Стружечные Плиты)
A4: № | B4: Наименование | C4: Ед. изм. | D4: Цена за лист, руб | E4: Кол-во заказа | F4: Сумма, руб
A5: ЦСП (Цементно-стружечные плиты) | E5: -
A6: 1 | B6: ЦСП 8мм*3,200х1,250 | C6: лист | D6: 670р. | F6: =D6*E6 -> 0.00р.
A7: 2 | B7: ЦСП 10мм*3,200х1,250 | C7: лист | D7: 790р. | F7: 0.00р.
A8: 3 | B8: ЦСП 12мм*3,200х1,250 | C8: лист | D8: 895р. | F8: 0.00р.
A9: 4 | B9: ЦСП 16мм*3,200х1,250 | C9: лист | D9: 1,120р. | F9: 0.00р.
A10: 5 | B10: ЦСП 20мм*3,200х1,250 | C10: лист | D10: 1,365р. | F10: 0.00р.
A11: 6 | B11: ЦСП 24мм*3,200х1,250 | C11: лист | D11: 1,600р. | F11: 0.00р.
A12: ГСП (Гипсо-стружечные плиты) | E12: -
A13: 8 | B13: ГСП 10 мм *2.500х1.250 ПК/ФК | C13: лист | D13: 480р. | F13: =D13*E13 -> 0.00р.
A14: 9 | B14: ГСП 10 мм *3000х1.250 ПК/ФК | C14: лист | D14: 525р. | F14: 0.00р.
A15: 10 | B15: ГСП 12 мм *2.500х1.250 ПК/ФК | C15: лист | D15: 520р. | F15: 0.00р.
A16: 11 | B16: ГСП 12 мм *3.000х1.250 ПК/ФК | C16: лист | D16: 600р. | F16: 0.00р.
A17: 13 | B17: ГСПВ 10 мм *2.500х1.250 ПК/ФК | C17: лист | D17: 500р. | F17: 0.00р.
A18: 14 | B18: ГСПВ 10 мм *3.000х1.250 ПК/ФК | C18: лист | D18: 580р. | F18: 0.00р.
A19: 15 | B19: ГСПВ 12мм*2.500х1.250 ПК/ФК | C19: лист | D19: 670р. | F19: 0.00р.
A20: 16 | B20: ГСПВ 12 мм *3.000х1.250 ПК/ФК | C20: лист | D20: 660р. | F20: 0.00р.
E21: Общая сумма | F21: =SUM(F6:F20) -> 0.00р.

Sheet ГКЛ
A1: ГКЛ | D1: на главную страницу
A3: № | B3: Наименование товаров | C3: Ед. изм. | D3: Цена за лист, руб | F3: Кол-во заказа | G3: Сумма, руб
A5: Гипсокартон Волма | F5: -
A6: 1 | B6: ГКЛ 2500*1200*9,5 стандарт | C6: лист | D6: 185р. | G6: =D6*F6 -> 0.00р.
A7: 2 | B7: ГКЛ 2500*1200*12,5 стандарт | C7: лист | D7: 195р. | G7: 0.00р.
A8: 3 | B8: ГКЛ 2500*1200*9,5 влаг | C8: лист | D8: 285р. | G8: 0.00р.
A9: 4 | B9: ГКЛ 2500*1200*12,5 влаг | C9: лист | D9: 295р. | G9: 0.00р.
F10: Общая сумма | G10: =SUM(G6:G9) -> 0.00р.

Sheet ДВП ДСП
A1: ДВП, ДСП | C1: на главную страницу
B3: НАИМЕНОВАНИЕ | C3: Площадь листа, м2 | D3: Цена за лист, руб | E3: Кол-во заказа | F3: Сумма, руб
E4: -
A5: 1 | B5: ДВП 2440*1220*3,2 ТС-20 1 сорт | C5: 2.98 | D5: 160р. | F5: =E5*D5 -> 0.00р.
A6: 2 | B6: ДВП 2745*1220*3,2 ТС-20 1 сорт | C6: 3.35 | D6: 190р. | F6: =E6*D6 -> 0.00р.
A7: 3 | B7: ДВП 2745*1700*3,2 НТ 1 сорт | C7: 4.67 | D7: 230р. | F7: 0.00р.
A8: 4 | B8: ДСП 2500*1850*16мм Шарья | C8: 4.625 | D8: 880р. | F8: 0.00р.
E9: Общая сумма | F9: =SUM(F4:F8) -> 0.00р.

Sheet Утеп-ли
A2: УТЕПЛИТЕЛИ, ПЕНОПЛАСТ, ФОЛЬГА | G2: на главную страницу
A4: № | B4: Наименование | C4: Толщина мм | D4: Размер, мм (ДхШхТ) | E4: Плотность кг/мЗ | F4: Цена за упаковку | G4: Примечание | H4: Количество заказа | I4: Сумма, руб
A6: Базальтовый утеплитель ТехноНИКОЛЬ | H6: -
A7: 1 | B7: РОКЛАЙТ | C7: 50 | D7: 1200x600x50 | E7: 35 | F7: 425р. | G7: в пачке 8 плит, 0,288м3, 5,76м2 | I7: =F7*H7 -> 0.00р.
C8: 100 | D8: 1200x600x100 | E8: 35 | F8: 625р. | G8: в пачке 6 плит, 0,432м3, 2,88м2 | I8: =F7*H8 -> 0.00р.
A9: 2 | B9: ТЕХНОБЛОК | C9: 50 | D9: 1200x600x50 | E9: 45 | F9: 550р. | G9: в пачке 8 плит, 0,288м3, 5,76м2 | I9: =F7*H9 -> 0.00р.
C10: 100 | D10: 1200x600x100 | E10: 45 | F10: 550р. | G10: в пачке 4 плит, 0,2,88м3, 2,88м2 | I10: =F7*H10 -> 0.00р.
A11: KNAUF | H11: -
A12: 7 | B12: Для коттеджа плита 037 | C12: 50 | D12: 1230х610х50 | F12: 850р. | G12: в пачке 16 плит, 0,6м3, 12м2 | I12: =F12*H12 -> 0.00р.
C13: 100 | D13: 1230х610х100 | F13: 850р. | G13: в пачке 8 плит, 0,6м3, 6м2 | I13: =F13*H13 -> 0.00р.
A14: 8 | B14: Для кровли ролл 037 | C14: 150 | D14: 1220*5500*150 | F14: 1,420р. | G14: в пачке 1 плита 1м3, 6,7м2 | I14: =F14*H14 -> 0.00р.
A15: 9 | B15: Для кровли ролл 037 | C15: 50 | D15: 1220*6148*50 | F15: 1,210р. | G15: в пачке 2 плиты, 0,75м3, 15м2 | I15: =F15*H15 -> 0.00р.
A16: 10 | B16: Для перекрытий ролл 040 | C16: 50 | D16: 1220*7380*50 | F16: 1,120р. | G16: в пачке 2 плиты, 0,9м3, 18м2 | I16: =F16*H16 -> 0.00р.
A17: 11 | B17: Кнауф Экоролл TS 040 плита | C17: 50 | D17: 610*1230*50 | F17: 650р. | G17: в пачке 16 плит, 0,6м3, 12м2 | I17: =F17*H17 -> 0.00р.
C18: 100 | D18: 610*1230*100 | F18: 650р. | G18: в пачке 8 плит, 0,6м3, 6м2 | I18: 0.00р.
A19: 12 | B19: Кнауф Экоролл 044 рулон | C19: 50 | D19: 1220*8200*50 | F19: 1,000р. | G19: в пачке 2 плиты 1м3, 20м2 | I19: 0.00р.
A20: 13 | B20: АкустиКНАУФ AS 037 плита | C20: 50 | D20: 610*1230*50 | F20: 900р. | G20: в пачке 16 плит, 0,6м3, 12м2 | I20: =F20*H20 -> 0.00р.
A21: Пенопласт | H21: -
A22: 14 | B22: Пенопласт ПСБ-С-15 | C22: 5см | D22: 1000х1000*50 | F22: 75р. | G22: хорошая звукоизоляция; | I22: =F22*H22 -> 0.00р.
A23: 15 | B23: Пенопласт ПСБ-С-15 | C23: 10см | D23: 1000х1000*100 | F23: 150р. | G23: низкий показатель термопроводности, который варьирует от 0,037 до 0,041 Вт/мК; | I23: =F23*H23 -> 0.00р.
A24: 16 | B24: Пенопласт ПСБ-С-25 | C24: 5см | D24: 1000х1000*50 | F24: 150р. | G24: плотность (отношение веса к объему) находится в пределах от 15 до 35 кг/м3; | I24: 0.00р.
A25: 17 | B25: Пенопласт ПСБ-С-25 | C25: 10см | D25: 1000х1000*100 | F25: 300р. | G25: высокий уровень паропроницаемости материала, что помогает удалению избытка влаги; | I25: 0.00р.
A26: Фольга алюминиевая | H26: -
A27: 18 | B27: Фольга алюминиевая | C27: 50мкн | D27: 5м2 | F27: 270р. | G27: Экологически чистая сверхпрочная полированная алюминиевая фольга применяется для бань, саун, изоляции труб, сантехнических систем, зданий и сооружений. | I27: =F27*H27 -> 0.00р.
A28: 19 | B28: Фольга алюминиевая | C28: 50мкн | D28: 10м2 | F28: 530р. | I28: =F28*H28 -> 0.00р.
A29: 20 | B29: Фольга алюминиевая | C29: 50мкн | D29: 12м2 | F29: 560р. | I29: 0.00р.
A30: 21 | B30: Фольга алюминиевая | C30: 50мкн | D30: 20м2 | F30: 1,050р. | I30: 0.00р.
H31: Общая сумма | I31: =SUM(I7:I30) -> 0.00р.

Sheet Пароизол
A2: ПАРОИЗОЛЯЦИОННЫЕ МАТЕРИАЛЫ | F2: на главную страницу
A4: № | B4: Наименование | D4: Размер, м2 | E4: Цена, руб. | F4: Примечание | G4: кол-во заказа | H4: Сумма
A5: ЭкоХаус
A6: 1 | B6: Мастер А | D6: 70 | E6: 650 | F6: ветро-влагозащита | H6: 0.00р.
A7: 3 | B7: Мастер В | D7: 70 | E7: 550 | F7: пароизоляция | H7: 0.00р.
A8: 5 | B8: Мастер С | D8: 70 | E8: 700 | F8: паро-гидроизоляция универ. | H8: 0.00р.
A9: 6 | B9: Мастер D | D9: 35 | E9: 800 | H9: 0.00р.
A10: АРДМАНОЛ
A11: 1 | B11: АРДМАНол А (1,6*38,5) | D11: 60 | E11: 850р. | F11: ветро-влагозащита | H11: =E11*G11 -> 0.00р.
A12: 2 | B12: АРДМАНол В (1,6*38,5) | D12: 60 | E12: 630р. | F12: пароизоляция | H12: =E12*G12 -> 0.00р.
A13: 4 | B13: АРДМАНол С (1,6*38,5) | D13: 60 | E13: 880р. | F13: гидро-пароизоляция | H13: 0.00р.
A14: 5 | B14: АРДМАНол D (1,6*38,5) | D14: 60 | E14: 960р. | F14: паро-гидроизоляция универ. | H14: =E14*G14 -> 0.00р.
A15: 6 | B15: АРДМАНол FS 1,5м | D15: 60 | E15: 1,075р. | F15: отражающая гидро-пароизоляция с эффектом энергосбережения | H15: 0.00р.
A16: Изоспан
A17: 1 | B17: Изоспан А | D17: 70 | E17: 1,830р. | H17: 0.00р.
A18: 2 | B18: Изоспан В | D18: 70 | E18: 1,300р. | H18: 0.00р.
A19: 3 | B19: Изоспан С | D19: 70 | E19: 1,630р. | H19: 0.00р.
A20: 4 | B20: Изоспан D | D20: 70 | E20: 1,760р. | H20: 0.00р.
A21: 5 | B21: Изоспан АМ | D21: 70 | E21: 2,700р. | H21: 0.00р.
G22: Общая сумма | H22: =SUM(H5:H21) -> 0.00р.

Sheet Крепеж
A1: Крепеж | G1: на главную страницу | J1: на главную страницу
A3: № | B3: Наименование | C3: Цена за шт, руб. | I3: Ед. изм. | J3: Кол-во заказа | K3: Сумма, руб
A6: Саморезы по дереву | J6: -
A7: 3 | B7: Саморез 3,5*35 по дереву | C7: 0.50р. | I7: шт | K7: =C7*J7 -> 0.00р.
A8: 6 | B8: Саморез 3,5*51 по дереву | C8: 0.65р. | I8: шт | K8: 0.00р.
A9: 10 | B9: Саморез 4,2*76 по дереву | C9: 0.90р. | I9: шт | K9: 0.00р.
A10: 11 | B10: Саморез 4,2*90 по дереву | C10: 1.15р. | I10: шт | K10: 0.00р.
A11: Гвозди строительные оцинкованные
A12: 20 | B12: Гвозди 1,8*40 (финишные) | C12: 120р. | I12: кг | K12: =C12*J12 -> 0.00р.
A13: 21 | B13: Гвозди 2,5*50 | C13: 105р. | I13: кг | K13: 0.00р.
A14: 22 | B14: Гвозди 2,5*60 (винтовые) | C14: 110р. | I14: кг | K14: 0.00р.
A15: 24 | B15: Гвозди 3,5*90 | C15: 95р. | I15: кг | K15: 0.00р.
A16: Гвозди строительные
A17: 1 | B17: Гвозди строительные 80 | C17: 85р. | I17: кг | K17: 0.00р.
A18: 2 | B18: Гвозди строительные 100 | C18: 90р. | I18: кг | K18: 0.00р.
A19: 3 | B19: Гвозди строительные 120 | C19: 95р. | I19: кг | K19: 0.00р.
A20: 4 | B20: Гвозди строительные 150 | C20: 95р. | I20: кг | K20: 0.00р.
A21: 5 | B21: Гвозди строительные 200 | C21: 105р. | I21: кг | K21: 0.00р.
J22: Общая сумма | K22: =SUM(K7:K21) -> 0.00р.

Sheet Огнебио
A2: ЗАЩИТА ДЛЯ ДЕРЕВА "ZELEST" | C2: на главную страницу
A4: № | B4: Наименование | C4: Ед. изм. | D4: Характеристика | E4: Цена, руб | F4: Кол-во заказа | G4: Сумма, руб
A5: Огне-биозащитные составы для комплексной защиты древесины | F5: -
A6: Огне- биозащита ПРОФЕССИОНАЛЬНАЯ - I и II гр. | F6: -
A7: 1 | B7: О-2-12 Зелест Огнепроф красный 12кг | C7: канистра | D7: Комбинированное огне- биозащитное средство с усиленным огнезащитным действием. Обеспечивает 2 группы огнезащиты. Тонирует древесину для контроля качества огнезащиты. | E7: 800р. | G7: =E7*F7 -> 0.00р.
A8: 2 | B8: О-2-12 Зелест Огнепроф красный 25кг | C8: канистра | E8: 1,560р. | G8: =E8*F8 -> 0.00р.
A9: 3 | B9: О-3-10 Зелест Огнепроф бесцветный 10кг | C9: канистра | E9: 800р. | G9: 0.00р.
A10: 4 | B10: О-3-20 Зелест Огнепроф бесцветный 20кг | C10: канистра | E10: 1,560р. | G10: 0.00р.
A11: Огне- биозащита СТАНДАРТ II гр. | F11: -
A12: 5 | B12: О-1-10 Зелест Огнестандарт бесцв. 10кг | C12: канистра | D12: Комплексная огне- биозащита древесины. Не изменяет цвет древесины, колеруется водными морилками. | E12: 600р. | G12: =E12*F12 -> 0.00р.
A13: 6 | B13: О-1-10 Зелест Огнестандарт бесцв. 20кг | C13: канистра | E13: 1,200р. | G13: =E13*F13 -> 0.00р.
A14: Огне- биозащита СТАНДАРТ II гр. с тонированием | F14: -
A15: 7 | B15: О-1-10 Зелест Огнестандарт с тонир. 10кг | C15: канистра | D15: Комплексная огне- биозащита древесины. Тонирует древесину в вишневый оттенок для контроля качества огнезащитной обработки. | E15: 600р. | G15: =E15*F15 -> 0.00р.
A16: 8 | B16: О-1-10 Зелест Огнестандарт с тонир. 20кг | C16: канистра | E16: 1,200р. | G16: =E16*F16 -> 0.00р.
A17: Антисептики | F17: -
A18: Антисептик НЕВЫМЫВАЕМЫЙ | F18: -
A19: 1 | B19: Зелест А-4 5 кг | C19: канистра | D19: Профессиональная и долговременная защита древесины от интенсивного гниения, в условиях особо интенсивного увлажнения и биоразрушения, непрерывном контакте с грунтом и водой. Придает древесине зеленоватый оттенок | E19: 390р. | G19: =E19*F19 -> 0.00р.
A20: 2 | B20: Зелест А-4 10 кг | C20: канистра | E20: 700р. | G20: =E20*F20 -> 0.00р.
A21: 3 | B21: Зелест Антисептик А-4 (1кг) 1:4 | C21: канистра | E21: 540р. | G21: 0.00р.
A22: Антисептик ТРУДНОВЫМЫВАЕМЫЙ | F22: -
A23: 4 | B23: Зелест А-3 5 кг | C23: канистра | D23: Усиленная защита ответственных элементов деревянных конструкций от гниения и поражения насекомыми в труднодоступных влажных местах, в условиях воздействия атмосферных осадков, почвенной влаги. Придает древесине зеленоватый оттенок. | E23: 305р. | G23: =E23*F23 -> 0.00р.
A24: 5 | B24: Зелест А-3 10 кг | C24: канистра | E24: 560р. | G24: =E24*F24 -> 0.00р.
A25: 6 | B25: Зелест Антисептик А-3 (1кг) 1:4 | C25: канистра | E25: 220р. | G25: 0.00р.
A26: Антисептик для наружных и внутренних работ ЭКОБИО бесцветный | F26: -
A27: 7 | B27: Зелест А-1 5 кг | C27: канистра | D27: Надежная и экологичная защита древесины от синевы и плесени внутри помещений и под навесом в условиях конденсационного и гигроскопического увлажения. Не изменяет цвет древесины. | E27: 270р. | G27: =E27*F27 -> 0.00р.
A28: 8 | B28: Зелест А-1 10 кг | C28: канистра | E28: 490р. | G28: =E28*F28 -> 0.00р.
A29: 9 | B29: Зелест ЭКОБИО бесцв.сух.конц-т (1:9) 5 кг | C29: пакет | E29: 1,070р. | G29: 0.00р.
A30: Антисептик УНИВЕРСАЛ для наружных и внутренних работ | F30: -
A31: 10 | B31: Зелест А-2 (5 кг) | C31: канистра | D31: Надежная и экологичная защита древесины от синевы, плесени, поражения насекомыми на весь период с начала возведения до финишной отделки, включая изготовление,транспортировку и хранение. | E31: 300р. | G31: =E31*F31 -> 0.00р.
A32: 11 | B32: Зелест А-2 (10 кг) | C32: канистра | E32: 540р. | G32: =E32*F32 -> 0.00р.
A33: 12 | B33: Зелест УНИВЕРСАЛ бесцв.жид.конц-т (1:9) 1 кг | C33: канистра | E33: 410р. | G33: 0.00р.
A34: Средства для восстановления древесины | F34: -
A35: 13 | B35: Зелест С-2-06 (отбеливатель с запахом хвои) | C35: канистра | D35: Высокоэффективный отбеливатель с усиленным проникающим действием для быстрого восстановления естественного природного цвета потемневшей древесины. | E35: 480р. | G35: =E35*F35 -> 0.00р.
A36: 14 | B36: Зелест С-2-12 кг (отбеливатель с запахом хвои) | C36: канистра | E36: 880р. | G36: 0.00р.
A37: 15 | B37: С-1 Зелест Инсектицид жидкий концентрат (1:9) 1 кг | C37: канистра | E37: 520р. | G37: =E36*F37 -> 0.00р.
F38: Общая сумма | G38: =SUM(G7:G37) -> 0.00р.

Sheet Грунт для OSB
G1: на главную страницу
A2: ГРУНТ-краска Holzer для OSB-3
A4: № | B4: Наименование | C4: Ед. изм. | D4: Характеристика | E4: Цена, руб | F4: Кол-во заказа | G4: Сумма, руб
A5: Грунты для OSB-3 для наружных и внутренних работ | F5: -
A6: 1 | B6: Хольцер ОSB Грунт (Новинка!!!) 4кг | C6: ведро | D6: Грунт-краска предназначена для защиты, предварит. обработки перед нанесением декоративных покрытий, либо создания финишного покрытия по OSB-3. Расход 0,35-0,4гр/м2 | E6: 850р. | G6: =E6*F6 -> 0.00р.
A7: 2 | B7: Хольцер ОSB Грунт (Новинка!!!) 15кг | C7: ведро | E7: 2,900р. | G7: =E7*F7 -> 0.00р.
A8: 3 | B8: Хольцер ОSB Грунт (Новинка!!!) 25кг | E8: 4,500р. | G8: 0.00р.
F9: Общая сумма | G9: =SUM(G5:G8) -> 0.00р.

Sheet Напл.мат
A1: НАПЛАВЛЯЕМЫЕ МАТЕРИАЛЫ | G1: на главную страницу | I1: на главную страницу
A3: № | B3: Наименование | C3: Цена за рулон, руб | I3: Кол-во заказа | J3: Сумма, руб
I5: -
A6: 1 | B6: Рубероид РПП-300 (15м2) без посыпки | C6: 330р. | J6: =C6*I6 -> 0.00р.
A7: 4 | B7: Мастика гидроизоляционная (20л) ведро | C7: 950р. | J7: =C7*I7 -> 0.00р.
A8: 5 | B8: Праймер битумный готовый (20л) ведро | C8: 1,050р. | J8: =C8*I8 -> 0.00р.
I9: Общая сумма | J9: =SUM(J5:J8) -> 0.00р.

Sheet Цемент
A1: ЦЕМЕНТ | G1: на главную страницу | J1: на главную страницу
A3: № | B3: Наименование | C3: Цена за лист, руб | I3: Ед. изм. | J3: Кол-во заказа | K3: Сумма, руб
A6: Шифер | J6: -
A7: 1 | B7: Цемент М-400 40кг | C7: 270р. | I7: мешок | K7: =C7*J7 -> 0.00р.
J8: Общая сумма | K8: =SUM(K7:K7) -> 0.00р.

Sheet Лист1 (hidden)
